fUST/lending_fUST_20241129
["ID","MTS","AMOUNT","RATE_DAILY","PERIOD"]
[343668230,1732817438932,-634.03,0.00024657,3]
[343668231,1732817438943,-1242.03,0.00024657,3]
[343668232,1732817438953,-634.03,0.00024657,3]
[343668233,1732817438962,-1242.03,0.00024657,3]
[343668234,1732817438972,-500.0,0.00024657,3]
[343668235,1732817438981,-634.03,0.00024657,3]
[343668236,1732817438991,-500.0,0.00024657,3]
[343668237,1732817439001,-1242.03,0.00024657,3]
[343668238,1732817439010,-634.03,0.00024657,3]
[343668239,1732817439020,-500.0,0.00024657,3]
[343668240,1732817439029,-1242.03,0.00024657,3]
[343668241,1732817439039,-634.03,0.00024657,3]
[343668242,1732817439048,-500.0,0.00024657,3]
[343668243,1732817439058,-1242.03,0.00024657,3]
[343668244,1732817439067,-634.03,0.00024657,3]
[343668245,1732817439077,-181.24602979,0.00024657,3]
[343668246,1732817439095,-1242.03,0.00024657,3]
[343668247,1732817439104,-634.03,0.00024657,3]
[343668248,1732817439114,-1242.03,0.00024657,3]
[343668249,1732817439123,-634.03,0.00024657,3]
[343668250,1732817439133,-634.03,0.00024657,3]
[343668251,1732817439142,-1242.03,0.00024657,3]
[343668252,1732817439152,-500.0,0.00024657,3]
[343668253,1732817439161,-1242.03,0.00024657,3]
[343668254,1732817439170,-634.1428325,0.00024657,3]
[343668255,1732817439180,-500.0,0.00024657,3]
[343668256,1732817439189,-1242.19016699,0.00024657,3]
[343668257,1732817439198,-500.0,0.00024657,3]
[343668258,1732817439208,-500.0,0.00024657,3]
[343668259,1732817439217,-500.0,0.00024657,3]
[343668260,1732817439227,-519.8347233,0.00024657,3]
[343668261,1732817439236,-1791.64,0.00024657,3]
[343668262,1732817439245,-1791.64,0.00024657,3]
[343668263,1732817439255,-1791.64,0.00024657,3]
[343668264,1732817439264,-1791.64,0.00024657,3]
[343668265,1732817439274,-1791.64,0.00024657,3]
[343668266,1732817439283,-1791.64,0.00024657,3]
[343668267,1732817439293,-1791.64,0.00024657,3]
[343668268,1732817439302,-1791.64,0.00024657,3]
[343668269,1732817439312,-1791.64,0.00024657,3]
[343668270,1732817439321,-1791.64,0.00024657,3]
[343668271,1732817439331,-500.0,0.00024657,3]
[343668272,1732817439345,-1791.64,0.00024657,3]
[343668273,1732817439355,-506.46157937,0.00024657,3]
[343668274,1732817439364,-1791.64,0.00024657,3]
[343668275,1732817439373,-1791.64,0.00024657,3]
[343668276,1732817439382,-1791.64,0.00024657,3]
[343668277,1732817439391,-1791.64,0.00024657,3]
[343668278,1732817439400,-1791.64,0.00024657,3]
[343668279,1732817439410,-1791.64,0.00024657,3]
[343668280,1732817439419,-1791.64,0.00024657,3]
[343668281,1732817439429,-500.0,0.00024657,3]
[343668282,1732817439438,-1791.64,0.00024657,3]
[343668283,1732817439447,-500.0,0.00024657,3]
[343668284,1732817439456,-1791.64,0.00024657,3]
[343668285,1732817439466,-500.0,0.00024657,3]
[343668286,1732817439475,-1791.64,0.00024657,3]
[343668287,1732817439485,-500.0,0.00024657,3]
[343668288,1732817439495,-1791.64,0.00024657,3]
[343668289,1732817439504,-500.0,0.00024657,3]
[343668290,1732817439514,-1791.64,0.00024657,3]
[343668291,1732817439523,-500.0,0.00024657,3]
[343668292,1732817439533,-1791.71884108,0.00024657,3]
[343668293,1732817439543,-500.0,0.00024657,3]
[343668294,1732817439553,-500.0,0.00024657,3]
[343668295,1732817439562,-500.0,0.00024657,3]
[343668296,1732817439571,-500.0,0.00024657,3]
[343668297,1732817439581,-500.0,0.00024657,3]
[343668298,1732817439595,-500.0,0.00024657,3]
[343668299,1732817439605,-500.0,0.00024657,3]
[343668300,1732817439615,-500.0,0.00024657,3]
[343668301,1732817439624,-500.0,0.00024657,3]
[343668302,1732817439634,-500.0,0.00024657,3]
[343668303,1732817439643,-500.0,0.00024657,3]
[343668304,1732817439652,-500.0,0.00024657,3]
[343668305,1732817439662,-484.54780053,0.00024657,3]
[343668306,1732817439671,-500.0,0.00024657,3]
[343668307,1732817439681,-500.0,0.00024657,3]
[343668308,1732817439690,-500.0,0.00024657,3]
[343668309,1732817439700,-646.32278393,0.00024657,3]
[343668310,1732817439709,-500.0,0.00024657,3]
[343668311,1732817439720,-500.0,0.00024657,3]
[343668312,1732817439730,-500.0,0.00024657,3]
[343668313,1732817439740,-558.61646343,0.00024657,3]
[343668314,1732817439750,-500.0,0.00024657,3]
[343668315,1732817439759,-500.0,0.00024657,3]
[343668316,1732817439769,-500.0,0.00024657,3]
[343668317,1732817439778,-500.0,0.00024657,3]
[343668318,1732817439788,-500.0,0.00024657,3]
[343668319,1732817439797,-500.0,0.00024657,3]
[343668320,1732817439807,-500.0,0.00024657,3]
[343668321,1732817439816,-500.0,0.00024657,3]
[343668322,1732817439826,-646.17952481,0.00024657,3]
[343668323,1732817439840,-584.89,0.00024657,3]
[343668324,1732817439850,-584.89,0.00024657,3]
[343668325,1732817439862,-584.89,0.00024657,3]
[343668326,1732817439874,-584.89,0.00024657,3]
[343668327,1732817439883,-584.89,0.00024657,3]
[343668328,1732817439893,-584.89,0.00024657,3]
[343668329,1732817439903,-584.89,0.00024657,3]
[343668330,1732817439912,-584.89,0.00024657,3]
[343668331,1732817439922,-584.89,0.00024657,3]
[343668332,1732817439931,-584.89,0.00024657,3]
[343668333,1732817439941,-584.89,0.00024657,3]
[343668334,1732817439952,-584.89,0.00024657,3]
[343668335,1732817439961,-584.89,0.00024657,3]
[343668336,1732817439970,-584.89,0.00024657,3]
[343668337,1732817439980,-584.89,0.00024657,3]
[343668338,1732817439989,-500.0,0.00024657,3]
[343668339,1732817439999,-584.89,0.00024657,3]
[343668340,1732817440008,-584.89,0.00024657,3]
[343668341,1732817440018,-500.0,0.00024657,3]
[343668342,1732817440027,-584.89,0.00024657,3]
[343668343,1732817440037,-500.0,0.00024657,3]
[343668344,1732817440046,-584.89,0.00024657,3]
[343668345,1732817440055,-500.0,0.00024657,3]
[343668346,1732817440065,-584.89,0.00024657,3]
[343668347,1732817440074,-500.0,0.00024657,3]
[343668348,1732817440087,-584.89,0.00024657,3]
[343668349,1732817440096,-500.0,0.00024657,3]
[343668350,1732817440106,-501.19266637,0.00024657,3]
[343668351,1732817440115,-584.89,0.00024657,3]
[343668352,1732817440125,-584.89,0.00024657,3]
[343668353,1732817440134,-585.0557527,0.00024657,3]
[343668354,1732817440144,-21836.91,0.00024657,3]
[343668355,1732817440154,-21836.91,0.00024657,3]
[343668356,1732817440163,-21836.91,0.00024657,3]
[343668357,1732817440173,-21836.91,0.00024657,3]
[343668358,1732817440183,-21836.91,0.00024657,3]
[343668359,1732817440194,-17129.31006009,0.00024657,3]
[343668363,1732817440596,-500.0,0.00024652,2]
[343668365,1732817440606,-281.91737591,0.00024652,2]
[343668367,1732817440618,-218.08262409,0.00024652,2]
[343668369,1732817440628,-455.77667437,0.00024652,2]
[343668371,1732817440639,-476.68660092,0.00024652,2]
[343668388,1732817440847,-3.97252551,0.00024652,2]
[343668390,1732817440857,-233.1157306,0.00024652,2]
[343668396,1732817443713,-71.84704871,0.00024652,2]
[343668397,1732817443724,-500.0,0.00024652,2]
[343668398,1732817443734,-43.21901534,0.00024652,2]
[343668400,1732817443891,-893.21678546,0.00024652,2]
[343668401,1732817443902,-357.0606988,0.00024652,2]
[343668402,1732817443915,-142.9393012,0.00024652,2]
[343668403,1732817443925,-500.0,0.00024652,2]
[343668404,1732817443935,-936.4358008,0.00024652,2]
[343668417,1732817444082,-500.0,0.00024652,2]
[343668418,1732817444094,-519.86858437,0.00024652,2]
[343668451,1732817446628,-416.56721643,0.00024652,2]
[343668453,1732817446639,-500.0,0.00024652,2]
[343668455,1732817446649,-936.4358008,0.00024652,2]
[343668457,1732817446660,-555.79698277,0.00024652,2]
[343668459,1732817446672,-380.63881803,0.00024652,2]
[343668461,1732817446682,-500.0,0.00024652,2]
[343668464,1732817446692,-936.4358008,0.00024652,2]
[343668466,1732817446702,-936.4358008,0.00024652,2]
[343668467,1732817446711,-500.0,0.00024652,2]
[343668468,1732817446721,-936.4358008,0.00024652,2]
[343668469,1732817446731,-936.4358008,0.00024652,2]
[343668471,1732817446740,-936.4358008,0.00024652,2]
[343668472,1732817446750,-936.4358008,0.00024652,2]
[343668473,1732817446760,-755.96395198,0.00024652,2]
[343668474,1732817446773,-180.47184882,0.00024652,2]
[343668475,1732817446782,-936.4358008,0.00024652,2]
[343668476,1732817446792,-661.44235038,0.00024652,2]
[343668477,1732817446803,-274.99345042,0.00024652,2]
[343668478,1732817446813,-603.25489597,0.00024652,2]
[343668479,1732817513928,165.27657,0.00013973,2]
[343668480,1732818100923,7000.0,0.00025,60]
[343668481,1732818130127,165.27657,0.00013973,2]
[343668483,1732818342130,-285.2485132,0.0002354,2]
[343668484,1732818342152,-600.0,0.00023671,2]
[343668485,1732818342175,-252.89738904,0.00023813,2]
[343668486,1732818342196,-151.0,0.00024303,4]
[343668487,1732818342217,-151.0,0.0002438,4]
[343668488,1732818342238,-151.0,0.00024458,4]
[343668489,1732818342262,-150.0,0.00024471,2]
[343668490,1732818342281,-648.433,0.00024471,2]
[343668491,1732818342302,-9271.69795272,0.00024473,2]
[343668492,1732818342326,-300.0,0.00024486,2]
[343668493,1732818342350,-300.0,0.00024486,2]
[343668494,1732818342373,-151.0,0.00024535,4]
[343668495,1732818342394,-151.0,0.00024613,4]
[343668496,1732818342415,-399.8,0.00024647,3]
[343668497,1732818342436,-152.0,0.00024651,2]
[343668498,1732818342456,-235.14014879,0.00024656,2]
[343668499,1732818342477,-191.718,0.00024656,7]
[343668500,1732818342497,-150.01,0.00024656,2]
[343668501,1732818342517,-1730.14194544,0.00024656,2]
[343668502,1732818342539,-709.84982781,0.00024656,2]
[343668503,1732818342560,-500.0,0.00024656,2]
[343668504,1732818342589,-500.0,0.00024656,2]
[343668505,1732818342617,-709.84982781,0.00024656,2]
[343668506,1732818342641,-709.84982781,0.00024656,2]
[343668507,1732818342663,-500.0,0.00024656,2]
[343668508,1732818342686,-500.0,0.00024656,2]
[343668509,1732818342708,-709.84982781,0.00024656,2]
[343668510,1732818342729,-247.91285282,0.00024656,2]
[343668511,1732818342750,-709.84982781,0.00024656,2]
[343668512,1732818342771,-500.0,0.00024656,2]
[343668513,1732818342792,-709.84982781,0.00024656,2]
[343668514,1732818342814,-235.16634292,0.00024656,2]
[343668515,1732818342839,-709.84982781,0.00024656,2]
[343668516,1732818342862,-709.84982781,0.00024656,2]
[343668517,1732818342886,-709.84982781,0.00024656,2]
[343668518,1732818342909,-709.84982781,0.00024656,2]
[343668519,1732818342931,-709.84982781,0.00024656,2]
[343668520,1732818342952,-709.84982781,0.00024656,2]
[343668521,1732818342973,-709.84982781,0.00024656,2]
[343668522,1732818342995,-709.84982781,0.00024656,2]
[343668523,1732818343017,-709.84982781,0.00024656,2]
[343668524,1732818343039,-709.84982781,0.00024656,2]
[343668525,1732818343061,-709.84982781,0.00024656,2]
[343668526,1732818343086,-709.84982781,0.00024656,2]
[343668527,1732818343111,-709.84982781,0.00024656,2]
[343668528,1732818343133,-709.84982781,0.00024656,2]
[343668529,1732818343155,-709.84982781,0.00024656,2]
[343668530,1732818343180,-709.84982781,0.00024656,2]
[343668531,1732818343203,-709.84982781,0.00024656,2]
[343668532,1732818343227,-709.84982781,0.00024656,2]
[343668533,1732818343250,-709.84982781,0.00024656,2]
[343668534,1732818343273,-709.84982781,0.00024656,2]
[343668535,1732818343295,-709.84982781,0.00024656,2]
[343668536,1732818343316,-709.84982781,0.00024656,2]
[343668537,1732818343339,-709.84982781,0.00024656,2]
[343668538,1732818343361,-709.84982781,0.00024656,2]
[343668539,1732818343383,-709.84982781,0.00024656,2]
[343668540,1732818343404,-709.84982781,0.00024656,2]
[343668541,1732818343426,-709.84982781,0.00024656,2]
[343668542,1732818343448,-709.84982781,0.00024656,2]
[343668543,1732818343470,-709.84982781,0.00024656,2]
[343668544,1732818343491,-709.84982781,0.00024656,2]
[343668545,1732818343513,-709.84982781,0.00024656,2]
[343668546,1732818343535,-709.84982781,0.00024656,2]
[343668547,1732818343557,-709.84982781,0.00024656,2]
[343668548,1732818343581,-709.84982781,0.00024656,2]
[343668549,1732818343603,-709.84982781,0.00024656,2]
[343668550,1732818343626,-709.84982781,0.00024656,2]
[343668551,1732818343648,-709.84982781,0.00024656,2]
[343668552,1732818343670,-709.84982781,0.00024656,2]
[343668553,1732818343692,-709.84982781,0.00024656,2]
[343668554,1732818343714,-709.84982781,0.00024656,2]
[343668555,1732818343737,-709.84982781,0.00024656,2]
[343668556,1732818343759,-709.84982781,0.00024656,2]
[343668557,1732818343781,-709.84982781,0.00024656,2]
[343668558,1732818343803,-709.84982781,0.00024656,2]
[343668559,1732818343828,-709.84982781,0.00024656,2]
[343668560,1732818343851,-709.84982781,0.00024656,2]
[343668561,1732818343875,-709.84982781,0.00024656,2]
[343668562,1732818343897,-709.84982781,0.00024656,2]
[343668563,1732818343921,-482.53839189,0.00024656,2]
[343668564,1732818349119,-227.31143592,0.00024656,2]
[343668565,1732818349142,-709.84982781,0.00024656,2]
[343668566,1732818349165,-709.84982781,0.00024656,2]
[343668567,1732818349193,-601.3817415,0.00024656,2]
[343668568,1732818394090,-2526.42892327,0.00024557,2]
[343668569,1732818394115,-300.0,0.00024655,2]
[343668570,1732818394137,-300.0,0.00024655,2]
[343668571,1732818394160,-500.0,0.00024657,3]
[343668572,1732818394183,-554.87,0.00024657,3]
[343668573,1732818394210,-158.11360785,0.00024657,3]
[343668574,1732818394233,-151.0,0.00024657,7]
[343668575,1732818394255,-151.0,0.00024657,7]
[343668576,1732818394277,-151.0,0.00024657,7]
[343668577,1732818394301,-151.0,0.00024657,7]
[343668578,1732818394322,-500.0,0.00024657,2]
[343668579,1732818394344,-500.0,0.00024657,3]
[343668580,1732818394366,-500.0,0.00024657,3]
[343668581,1732818394388,-177.72326603,0.00024657,3]
[343668582,1732818394411,-500.0,0.00024657,3]
[343668583,1732818394434,-638.29,0.00024657,3]
[343668584,1732818394456,-500.0,0.00024657,3]
[343668585,1732818394478,-500.0,0.00024657,3]
[343668586,1732818394500,-500.0,0.00024657,3]
[343668587,1732818394521,-500.0,0.00024657,3]
[343668588,1732818394543,-500.0,0.00024657,3]
[343668589,1732818394564,-273.45670485,0.00024657,3]
[343668590,1732818432186,-300.0,0.00024656,2]
[343668591,1732818432210,-300.0,0.00024656,2]
[343668592,1732818432230,-226.54329515,0.00024657,3]
[343668593,1732818432265,-500.0,0.00024657,3]
[343668594,1732818432290,-500.0,0.00024657,3]
[343668595,1732818432312,-199.0,0.00024657,3]
[343668596,1732818432334,-199.65,0.00024657,2]
[343668597,1732818432356,-41.34253791,0.00024657,2]
[343668598,1732818443119,-478.61367537,0.00023661,11]
[343668599,1732818448102,-2202.17381813,0.00023661,11]
[343668600,1732818521342,3500.0,0.00011,2]
[343668601,1732818522918,385.51465699,0.000212,30]
[343668611,1732818526117,2891.79445011,0.000109,2]
[343668612,1732818604843,1089.71804107,0.0001701,2]
[343668613,1732818604865,1115.5242,0.0001701,2]
[343668614,1732818604889,1081.53750871,0.0001701,2]
[343668656,1732818631963,-281.88703536,0.000232,2]
[343668657,1732818631972,-537.4913361,0.00023661,11]
[343668658,1732818631981,-150.0,0.00023716,2]
[343668659,1732818631991,-2210.62530787,0.00024557,2]
[343668660,1732818632000,-300.0,0.00024656,2]
[343668661,1732818632010,-300.0,0.00024656,2]
[343668662,1732818632019,-156.76009919,0.00024657,2]
[343668663,1732818632028,-500.0,0.00024657,3]
[343668664,1732818632038,-500.0,0.00024657,3]
[343668665,1732818632047,-500.0,0.00024657,3]
[343668666,1732818632056,-500.0,0.00024657,3]
[343668667,1732818632066,-500.0,0.00024657,3]
[343668668,1732818632076,-500.0,0.00024657,3]
[343668669,1732818632086,-500.0,0.00024657,3]
[343668670,1732818632095,-16573.83,0.00024657,3]
[343668671,1732818632105,-16573.83,0.00024657,3]
[343668672,1732818632115,-16573.83,0.00024657,3]
[343668673,1732818632124,-16573.83,0.00024657,3]
[343668674,1732818632134,-16573.83,0.00024657,3]
[343668675,1732818632144,-500.0,0.00024657,3]
[343668676,1732818632154,-500.0,0.00024657,3]
[343668677,1732818632163,-500.0,0.00024657,3]
[343668678,1732818632172,-500.0,0.00024657,3]
[343668679,1732818632182,-500.0,0.00024657,3]
[343668680,1732818632192,-500.0,0.00024657,3]
[343668681,1732818632201,-200.0,0.00024658,15]
[343668682,1732818632211,-150.15,0.00024659,2]
[343668683,1732818632221,-500.0,0.00024659,2]
[343668684,1732818632232,-1990.62,0.00024659,10]
[343668685,1732818632242,-4156.74,0.00024659,10]
[343668686,1732818632253,-3000.0,0.0002466,2]
[343668687,1732818632265,-500.0,0.00024669,2]
[343668688,1732818632275,-192.79626032,0.00024669,2]
[343668689,1732818632284,-500.0,0.00024669,2]
[343668690,1732818632293,-500.0,0.00024669,2]
[343668691,1732818632304,-500.0,0.00024669,2]
[343668692,1732818632314,-500.0,0.00024669,2]
[343668693,1732818632323,-500.0,0.00024669,2]
[343668694,1732818632333,-500.0,0.00024669,2]
[343668695,1732818632343,-500.0,0.00024669,2]
[343668696,1732818632353,-500.0,0.00024669,2]
[343668697,1732818632362,-500.0,0.00024669,2]
[343668698,1732818632371,-500.0,0.00024669,2]
[343668699,1732818632380,-500.0,0.00024669,2]
[343668700,1732818632389,-500.0,0.00024669,2]
[343668701,1732818632398,-500.0,0.00024669,2]
[343668702,1732818632407,-500.0,0.00024669,2]
[343668703,1732818632416,-500.0,0.00024669,2]
[343668704,1732818632426,-500.0,0.00024669,2]
[343668705,1732818632435,-500.0,0.00024669,2]
[343668706,1732818632444,-500.0,0.00024669,2]
[343668707,1732818632453,-500.0,0.00024669,2]
[343668708,1732818632463,-500.0,0.00024669,2]
[343668709,1732818632472,-500.0,0.00024669,2]
[343668710,1732818632482,-500.0,0.00024669,2]
[343668711,1732818632492,-500.0,0.00024669,2]
[343668712,1732818632501,-500.0,0.00024669,2]
[343668713,1732818632510,-500.0,0.00024669,2]
[343668714,1732818632520,-500.0,0.00024669,2]
[343668715,1732818632530,-500.0,0.00024669,2]
[343668716,1732818632540,-500.0,0.00024669,2]
[343668717,1732818632550,-500.0,0.00024669,2]
[343668718,1732818632560,-500.0,0.00024669,2]
[343668719,1732818632569,-500.0,0.00024669,2]
[343668720,1732818632578,-500.0,0.00024669,2]
[343668721,1732818632590,-500.0,0.00024669,2]
[343668722,1732818632600,-500.0,0.00024669,2]
[343668723,1732818632610,-500.0,0.00024669,2]
[343668724,1732818632620,-500.0,0.00024669,2]
[343668725,1732818632631,-500.0,0.00024669,2]
[343668726,1732818632641,-150.15,0.00024669,2]
[343668727,1732818632651,-500.0,0.00024669,2]
[343668728,1732818632660,-500.0,0.00024669,2]
[343668729,1732818632669,-500.0,0.00024669,2]
[343668730,1732818632678,-500.0,0.00024669,2]
[343668731,1732818632688,-500.0,0.00024669,2]
[343668732,1732818632697,-500.0,0.00024669,2]
[343668733,1732818632706,-500.0,0.00024669,2]
[343668734,1732818632715,-500.0,0.00024669,2]
[343668735,1732818632725,-500.0,0.00024669,2]
[343668736,1732818632734,-500.0,0.00024669,2]
[343668737,1732818632743,-500.0,0.00024669,2]
[343668738,1732818632752,-500.0,0.00024669,2]
[343668739,1732818632762,-500.0,0.00024669,2]
[343668740,1732818632771,-500.0,0.00024669,2]
[343668741,1732818632780,-500.0,0.00024669,2]
[343668742,1732818632790,-529.94476914,0.00024669,2]
[343668743,1732818632799,-3000.0,0.0002467,2]
[343668744,1732818632808,-16573.83,0.00024671,3]
[343668745,1732818632817,-543.96344718,0.00024672,3]
[343668746,1732818632828,-370.13769774,0.00024673,2]
[343668747,1732818632840,-500.0,0.00024673,2]
[343668748,1732818632853,-3000.0,0.0002468,2]
[343668749,1732818632863,-3000.0,0.0002469,2]
[343668750,1732818632872,-151.0,0.00024692,4]
[343668751,1732818632881,-16573.83,0.00024699,3]
[343668752,1732818632890,-3000.0,0.000247,2]
[343668753,1732818632900,-1874.95,0.000247,2]
[343668754,1732818632909,-616.0,0.000247,2]
[343668755,1732818632919,-618.1021,0.000247,2]
[343668756,1732818632928,-3000.0,0.0002471,2]
[343668757,1732818632938,-500.0,0.00024719,2]
[343668758,1732818632947,-3200.0,0.00024719,2]
[343668759,1732818632956,-151.0,0.00024719,2]
[343668760,1732818632966,-3000.0,0.0002472,2]
[343668761,1732818632975,-16573.83,0.00024726,3]
[343668762,1732818632985,-256.443488,0.00024728,2]
[343668763,1732818632994,-562.328055,0.00024728,2]
[343668764,1732818633003,-1779.176375,0.00024728,2]
[343668765,1732818633013,-172.095175,0.00024728,2]
[343668766,1732818633023,-3000.0,0.0002473,2]
[343668767,1732818633032,-3000.0,0.0002474,2]
[343668768,1732818633042,-3000.0,0.0002475,2]
[343668769,1732818633052,-16573.83,0.00024759,3]
[343668770,1732818633061,-3000.0,0.0002476,2]
[343668771,1732818633071,-151.0,0.00024769,4]
[343668772,1732818633081,-3000.0,0.0002477,2]
[343668773,1732818633092,-500.0,0.00024773,2]
[343668774,1732818633102,-500.0,0.00024773,2]
[343668775,1732818633112,-16573.83,0.00024778,3]
[343668776,1732818633121,-3000.0,0.0002478,2]
[343668777,1732818633130,-3000.0,0.0002479,2]
[343668778,1732818633140,-3000.0,0.000248,2]
[343668779,1732818633150,-3000.0,0.0002481,2]
[343668780,1732818633161,-3000.0,0.0002482,2]
[343668781,1732818633170,-16573.83,0.00024829,3]
[343668782,1732818633179,-3000.0,0.0002483,2]
[343668783,1732818633189,-3000.0,0.0002484,2]
[343668784,1732818633198,-16573.83,0.00024843,3]
[343668785,1732818633208,-151.0,0.00024844,7]
[343668786,1732818633217,-151.0,0.00024846,4]
[343668787,1732818633227,-3000.0,0.0002485,2]
[343668788,1732818633236,-3000.0,0.0002486,2]
[343668789,1732818633246,-3000.0,0.0002487,2]
[343668790,1732818633257,-3000.0,0.0002488,2]
[343668791,1732818633267,-3000.0,0.0002489,2]
[343668792,1732818633277,-3000.0,0.000249,2]
[343668793,1732818633287,-16573.83,0.00024908,3]
[343668794,1732818633297,-3000.0,0.0002491,2]
[343668795,1732818633307,-16573.83,0.00024919,3]
[343668796,1732818633316,-3000.0,0.0002492,2]
[343668797,1732818633326,-151.0,0.00024923,4]
[343668798,1732818633336,-180.132526,0.00024929,2]
[343668799,1732818633346,-3000.0,0.0002493,2]
[343668800,1732818633355,-500.0,0.00024931,2]
[343668801,1732818633365,-500.0,0.00024933,2]
[343668802,1732818633374,-3000.0,0.0002494,2]
[343668803,1732818633384,-150.15,0.00024943,2]
[343668804,1732818633393,-3000.0,0.0002495,2]
[343668805,1732818633402,-3000.0,0.0002496,2]
[343668806,1732818633411,-279.881878,0.0002496,7]
[343668807,1732818633420,-16573.83,0.00024968,3]
[343668808,1732818633430,-3765.594622,0.0002497,2]
[343668809,1732818633440,-156.76098578,0.00024973,2]
[343668810,1732818633449,-500.0,0.00024973,2]
[343668811,1732818633458,-16573.83,0.00024998,3]
[343668812,1732818633468,-16573.83,0.00024998,3]
[343668813,1732818633477,-16573.83,0.00024998,3]
[343668814,1732818633487,-16573.83,0.00024998,3]
[343668815,1732818633496,-16573.83,0.00024998,3]
[343668816,1732818633506,-16573.83,0.00024998,3]
[343668817,1732818633515,-16573.83,0.00024998,3]
[343668818,1732818633525,-16573.83,0.00024998,3]
[343668819,1732818633535,-16574.00814829,0.00024998,3]
[343668820,1732818633545,-4585.80343623,0.00025,2]
[343668821,1732818633555,-284376.98689006,0.00025,2]
[343668822,1732818633564,-200.0,0.00025,7]
[343668823,1732818633573,-276.0,0.00025,2]
[343668824,1732818633583,-542.00922101,0.00025,2]
[343668825,1732818633594,-135388.74960287,0.00025,7]
[343668826,1732818633603,-165.85588759,0.00025,2]
[343668827,1732818633612,-10364.0,0.00025,2]
[343668828,1732818633621,-203.87379997,0.00025,2]
[343668829,1732818633630,-511.03304649,0.00025,2]
[343668830,1732818633639,-347.5805222,0.00025,2]
[343668831,1732818633648,-829.91170756,0.00025,2]
[343668832,1732818633658,-155337.63474147,0.00025,2]
[343668833,1732818633668,-49622.25280041,0.00025,2]
[343668834,1732818633677,-207392.41422919,0.00025,7]
[343668835,1732818633687,-1042.70677819,0.00025,2]
[343668836,1732818633696,-8524.10383911,0.00025,2]
[343668837,1732818633706,-44538.04874609,0.00025,2]
[343668838,1732818633715,-292312.2835685,0.00025,2]
[343668839,1732818633725,-3382.4636649,0.00025,2]
[343668840,1732818633734,-151.0,0.00025,5]
[343668841,1732818633743,-200.0,0.00025,17]
[343668842,1732818633752,-151.0,0.00025,4]
[343668843,1732818633761,-302.72757545,0.00025,2]
[343668844,1732818633771,-302.69733596,0.00025,2]
[343668845,1732818633780,-256.443488,0.00025029,2]
[343668846,1732818633790,-562.328055,0.00025029,2]
[343668847,1732818633800,-1779.176375,0.00025029,2]
[343668848,1732818633810,-172.095175,0.00025029,2]
[343668849,1732818633820,-500.0,0.00025073,2]
[343668850,1732818633830,-500.0,0.00025073,2]
[343668851,1732818633845,-500.0,0.00025073,2]
[343668852,1732818633855,-500.0,0.00025073,2]
[343668853,1732818633865,-500.0,0.00025073,2]
[343668854,1732818633875,-500.0,0.00025073,2]
[343668855,1732818633885,-372.38796502,0.00025073,2]
[343668856,1732818633895,-261.52472665,0.00025073,2]
[343668857,1732818633905,-148440.47391789,0.0002509,2]
[343668858,1732818633914,-500.0,0.00025205,2]
[343668859,1732818633924,-500.0,0.00025207,2]
[343668860,1732818633933,-182.551865,0.00025209,2]
[343668861,1732818633943,-212.24580868,0.00025217,2]
[343668862,1732818633952,-1000.0,0.00025221,2]
[343668863,1732818633962,-302.72757545,0.0002525,2]